bitfinex/quotes_ETHUSD_20251116
["timestamp","ask_amount","ask_price","bid_price","bid_amount"]
[1763302443158,1.1337408,3157.7,3157.3,0.001]
[1763302443406,1.6251408,3157.7,3157.3,0.001]
[1763302444671,1.1337408,3157.7,3157.3,0.001]
[1763302445499,6.33392448,3157.6,3157.3,0.001]
[1763302448612,1.1337408,3157.7,3157.3,0.001]
[1763302448792,0.002,3158.9,3158.8,0.499]
[1763302449834,0.002,3158.9,3158.8,4.79832741]
[1763302449988,0.002,3158.9,3158.8,5.59474738]
[1763302450191,0.002,3158.9,3158.8,4.46117911]
[1763302450614,0.002,3158.9,3158.8,1.29541997]
[1763302450842,0.002,3158.9,3158.8,3.66475914]
[1763302451189,0.002,3158.9,3158.8,4.51247462]
[1763302452223,0.002,3158.9,3158.8,4.51213762]
[1763302453114,0.002,3158.9,3158.8,3.66475914]
[1763302453312,0.002,3158.9,3158.8,4.51191313]
[1763302453510,0.002,3158.9,3158.8,2.34066352]
[1763302453716,0.002,3158.9,3158.8,1.34615399]
[1763302453925,0.002,3158.9,3158.2,0.84715399]
[1763302454228,0.002,3158.9,3158.4,0.499]
[1763302454793,0.002,3158.9,3158.2,0.84715399]
[1763302455126,0.002,3158.9,3158.3,0.499]
[1763302455495,0.002,3158.9,3158.4,0.45125089]
[1763302455925,0.002,3158.9,3158.3,0.84715399]
[1763302456130,0.002,3158.9,3158.3,4.01332929]
[1763302456507,0.002,3158.9,3158.3,0.84715399]
[1763302457125,0.002,3158.9,3158.2,0.499]
[1763302457126,0.002,3158.9,3158.4,0.84715399]
[1763302457530,0.6538,3158.9,3158.2,0.84715399]
[1763302457912,0.6538,3158.9,3158.2,1.04522622]
[1763302458112,6.33151828,3158.8,3158.2,1.04522622]
[1763302458639,3.16575914,3158.8,3158.2,1.04522622]
[1763302460339,6.33151828,3158.8,3158.2,1.04522622]
[1763302460539,3.16575914,3158.8,3158.2,1.04522622]
[1763302462147,3.16575914,3158.8,3158.3,0.42116243]
[1763302462531,0.002,3158.9,3158.3,0.42116243]
[1763302463342,0.002,3158.9,3158.2,1.04522622]
[1763302464150,0.1825,3158.9,3158.2,1.04522622]
[1763302464357,0.1825,3158.9,3158.1,0.84715399]
[1763302464533,6.33151828,3158.8,3158.1,0.84715399]
[1763302464734,3.16575914,3158.8,3158.1,0.84715399]
[1763302464932,3.16575914,3158.8,3158.1,4.01361372]
[1763302465452,3.16575914,3158.8,3158.3,0.499]
[1763302465639,3.16766058,3158.9,3158.3,0.499]
[1763302466058,6.33332116,3158.9,3158.3,0.499]
[1763302466267,6.33332116,3158.9,3158.0,0.84715399]
[1763302466268,0.4514,3158.4,3158.0,0.84715399]
[1763302466592,6.33312222,3158.0,3157.5,0.84715399]
[1763302466869,6.33312222,3158.0,3157.3,1.13456827]
[1763302466870,0.4514,3157.6,3157.3,0.001]
[1763302467247,0.4713,3157.5,3157.3,0.001]
[1763302467457,0.4514,3157.4,3157.3,0.001]
[1763302468273,0.9227,3157.4,3157.3,0.001]
[1763302468653,4.08986285,3157.4,3157.3,0.001]
[1763302469058,3.16716285,3157.4,3157.3,0.001]
[1763302470676,7.4674647,3157.7,3157.3,0.001]
[1763302470830,8.80212348,3157.7,3157.3,0.001]
[1763302471031,0.4713,3157.6,3157.3,0.001]
[1763302471954,0.002,3158.9,3157.3,0.001]
[1763302472157,0.002,3158.9,3158.8,0.499]
[1763302472360,0.002,3158.9,3158.8,0.84715399]
[1763302472524,0.002,3158.9,3158.8,0.24797223]
[1763302473031,0.002,3158.9,3158.8,1.09512622]
[1763302474173,0.002,3158.9,3158.8,0.24797223]
[1763302475868,0.002,3158.9,3158.7,1.13356827]
[1763302478689,0.002,3158.9,3158.6,1.13356827]
[1763302479377,0.002,3158.9,3158.7,1.13356827]
[1763302479583,0.002,3158.9,3158.4,2.8340932]
[1763302479584,0.002,3158.9,3158.8,0.8498022]
[1763302479761,0.1942,3158.9,3158.8,0.8498022]
[1763302479961,0.1942,3158.9,3158.7,0.8498022]
[1763302479962,1.1125,3158.9,3158.7,0.8498022]
[1763302480175,0.6613,3158.9,3158.5,0.8498022]
[1763302480493,0.4671,3158.8,3158.4,0.8498022]
[1763302481292,3.61725983,3158.5,3158.4,0.8498022]
[1763302481654,0.4512,3158.5,3158.4,0.8498022]
[1763302481851,3.16585937,3158.7,3158.4,0.8498022]
[1763302482486,3.3598636,3158.9,3158.4,0.8498022]
[1763302482695,6.5255272,3158.9,3158.4,0.8498022]
[1763302482867,6.9926272,3158.9,3158.4,0.8498022]
[1763302483389,3.3598636,3158.9,3158.4,0.8498022]
[1763302483603,6.5255272,3158.9,3158.4,0.8498022]
[1763302483767,0.4512,3158.5,3157.8,0.8498022]
[1763302484090,0.4512,3158.3,3157.7,0.8498022]
[1763302484883,0.4512,3158.3,3157.5,1.13356827]
[1763302485085,0.4512,3158.3,3157.6,0.16325683]
[1763302485601,6.33272116,3158.2,3157.6,0.16325683]
[1763302488179,6.33252064,3158.3,3157.6,0.16325683]
[1763302488902,3.16626032,3158.3,3157.6,0.16325683]
[1763302489080,6.33252064,3158.3,3157.6,0.16325683]
[1763302489527,0.002,3158.9,3158.6,0.499]
[1763302489665,0.002,3158.9,3158.6,1.6327289]
[1763302489989,0.002,3158.9,3158.6,1.41037587]
[1763302490180,0.002,3158.9,3158.6,0.27664697]
[1763302490379,0.002,3158.9,3158.4,1.1337289]
[1763302490604,0.002,3158.9,3158.4,4.29988111]
[1763302491016,0.002,3158.9,3158.6,0.499]
[1763302494002,0.002,3158.9,3158.3,4.79894792]
[1763302494868,0.002,3158.9,3158.5,1.1337289]
[1763302495076,0.002,3158.9,3158.7,0.499]
[1763302495971,0.6613,3158.9,3158.6,1.36047587]
[1763302496171,0.6613,3158.9,3158.4,1.1337289]
[1763302496407,0.6613,3158.9,3158.3,1.6327289]
[1763302497412,3.82703488,3158.9,3158.3,1.6327289]
[1763302497903,6.99276976,3158.9,3158.3,1.1337289]
[1763302498102,0.4671,3158.8,3158.2,1.6327289]
[1763302498291,0.4671,3158.8,3158.1,1.1337289]
[1763302498469,0.4671,3158.8,3158.1,1.78371772]
[1763302499278,3.16585937,3158.7,3158.2,1.1337289]
[1763302499867,3.63295937,3158.7,3158.2,1.1337289]
[1763302500482,0.4512,3158.3,3158.0,1.1337289]
[1763302500799,0.4512,3158.1,3157.3,1.1347289]
[1763302501005,1.6008408,3158.6,3157.3,0.001]
[1763302501006,0.4512,3157.6,3157.3,0.001]
[1763302501311,3.16616008,3158.4,3157.3,0.001]
[1763302501486,1.49706681,3158.3,3157.3,0.001]
[1763302501811,1.96416681,3158.3,3157.3,0.001]
[1763302502019,0.4671,3158.2,3157.3,0.001]
[1763302503486,0.4512,3157.6,3157.3,0.001]
[1763302503675,9.49938252,3158.1,3157.3,0.001]
[1763302503878,0.99664825,3158.0,3157.3,0.001]
[1763302504386,1.46374825,3158.0,3157.3,0.001]
[1763302504586,0.99664825,3158.0,3157.3,0.001]
[1763302504788,0.002,3158.9,3158.4,0.499]
[1763302504992,0.002,3158.9,3158.7,0.499]
[1763302505188,0.4796,3158.8,3158.3,1.6327289]
[1763302505397,0.4796,3158.8,3158.2,1.6327289]
[1763302505811,0.002,3158.9,3158.2,4.79908583]
[1763302506014,0.002,3158.9,3158.6,0.499]
[1763302506316,3.16766725,3158.9,3158.3,2.22601156]
[1763302506476,0.002,3158.9,3158.3,2.22601156]
[1763302506681,0.002,3158.9,3158.3,1.09228266]
[1763302506997,3.16766032,3158.9,3158.3,1.09228266]
[1763302507177,3.16766032,3158.9,3158.4,0.53923653]
[1763302507377,0.002,3158.9,3158.4,0.53923653]
[1763302507615,0.002,3158.9,3158.4,3.70538163]
[1763302507979,0.002,3158.9,3158.4,0.53923653]
[1763302511911,0.002,3158.9,3158.6,0.499]
[1763302513522,0.6543,3158.9,3158.5,1.1337289]
[1763302513721,0.4796,3158.7,3158.4,1.1337289]
[1763302514021,0.4796,3158.7,3158.3,1.1337289]
[1763302514392,3.1659596,3158.6,3158.3,1.1337289]
[1763302514591,3.34808861,3158.9,3158.3,1.46706113]
[1763302515291,6.51377722,3158.9,3158.3,1.46706113]
[1763302515886,3.34808861,3158.9,3158.3,1.46706113]
[1763302516580,0.1824,3158.9,3158.3,4.63331867]
[1763302516786,0.002,3158.9,3158.3,5.13231867]
[1763302516981,0.002,3158.9,3158.4,0.51323187]
[1763302517379,0.002,3158.9,3158.8,0.499]
[1763302518607,0.002,3158.9,3158.8,4.79848804]
[1763302518820,0.002,3158.9,3158.8,4.79849994]
[1763302519023,0.002,3158.9,3158.8,1.6327408]
[1763302519226,0.002,3158.9,3158.8,4.96177402]
[1763302520321,0.002,3158.9,3158.8,3.82803322]
[1763302524031,0.002,3158.9,3158.8,4.96177402]
[1763302524235,0.002,3158.9,3158.8,5.36727802]
[1763302525121,0.002,3158.9,3158.8,7.63664764]
[1763302527335,0.002,3158.9,3158.8,5.36727802]
[1763302527715,0.002,3158.9,3158.8,7.63664764]
[1763302528596,0.002,3158.9,3158.8,5.36727802]
[1763302531641,0.002,3158.9,3158.8,4.96177402]
[1763302531945,0.002,3158.9,3158.8,5.36727802]
[1763302534239,0.002,3158.9,3158.8,7.63340032]
[1763302536817,0.002,3158.9,3158.8,5.36727802]
[1763302541024,0.002,3158.9,3158.8,5.39893561]
[1763302541341,2.814e-05,3158.9,3158.8,8.23632289]
[1763302541648,2.814e-05,3158.9,3158.8,8.2046653]
[1763302542156,2.814e-05,3158.9,3158.8,5.36827802]
[1763302542956,2.814e-05,3158.9,3158.8,8.23632289]
[1763302543171,2.814e-05,3158.9,3158.8,5.36827802]
[1763302543464,2.814e-05,3158.9,3158.8,5.39993561]
[1763302544152,2.814e-05,3158.9,3158.8,5.36827802]
[1763302549784,2.814e-05,3158.9,3158.8,5.39993561]
[1763302550680,2.814e-05,3158.9,3158.8,5.36827802]
[1763302551348,3.937e-05,3159.0,3158.9,2.0382448]
[1763302551548,3.937e-05,3159.0,3158.9,5.73615168]
[1763302552290,3.937e-05,3159.0,3158.9,8.90181061]
[1763302552490,3.937e-05,3159.0,3158.9,6.05730773]
[1763302554405,3.937e-05,3159.0,3158.9,8.90181061]
[1763302554755,3.937e-05,3159.0,3158.9,6.05730773]
[1763302555594,3.937e-05,3159.0,3158.9,8.90181061]
[1763302555893,3.937e-05,3159.0,3158.9,6.05730773]
[1763302557952,3.937e-05,3159.0,3158.9,8.90181061]
[1763302558354,3.937e-05,3159.0,3158.9,6.05730773]
[1763302558687,3.937e-05,3159.0,3158.9,8.90181061]
[1763302558890,3.937e-05,3159.0,3158.9,8.90281061]
[1763302559987,3.937e-05,3159.0,3158.9,6.05830773]
[1763302560356,0.94493937,3159.0,3158.9,6.05830773]
[1763302561097,3.937e-05,3159.0,3158.9,6.05830773]
[1763302562402,0.48033937,3159.0,3158.9,6.05830773]
[1763302562554,3.937e-05,3159.0,3158.9,6.05830773]
[1763302564002,0.94493937,3159.0,3158.9,6.05830773]
[1763302564156,0.94493937,3159.0,3158.9,5.20490373]
[1763302564551,0.94493937,3159.0,3158.9,3.91192482]
[1763302565156,0.94493937,3159.0,3158.9,4.79939973]
[1763302565506,0.94493937,3159.0,3158.9,3.66565893]
[1763302565507,0.92623937,3159.0,3158.9,3.66565893]
[1763302565866,0.92623937,3159.0,3158.9,0.5]
[1763302566456,0.92623937,3159.0,3158.9,3.66565893]
[1763302568825,0.92623937,3159.0,3158.9,4.83105631]
[1763302569121,0.92623937,3159.0,3158.9,5.63083824]
[1763302569545,3.937e-05,3159.0,3158.9,6.03634224]
[1763302569844,3.937e-05,3159.0,3158.9,6.00468566]
[1763302576603,0.002,3159.3,3159.2,0.499]
[1763302576832,0.002,3159.3,3159.2,0.904504]
[1763302577156,0.002,3159.3,3159.2,1.43334112]
[1763302577318,0.4559,3159.3,3159.2,1.43334112]
[1763302577655,0.9227,3159.3,3159.2,1.43334112]
[1763302578633,0.9227,3159.3,3159.2,5.73244023]
[1763302580632,0.9227,3159.3,3159.2,7.07485119]
[1763302580824,0.9227,3159.3,3159.2,4.79809911]
[1763302581502,0.9227,3159.3,3159.2,1.6327408]
[1763302581706,0.9227,3159.3,3159.2,4.79809911]
[1763302582154,0.9227,3159.3,3159.2,0.499]
[1763302582619,0.9227,3159.3,3159.2,3.66435831]
[1763302584748,0.9227,3159.3,3159.2,0.499]
[1763302585600,0.9227,3159.3,3159.2,1.70796652]
[1763302585805,1.33169218,3159.3,3159.2,1.70796652]
[1763302586005,4.4969503,3159.3,3159.2,1.70796652]
[1763302586322,4.4969503,3159.3,3159.1,1.70796652]
[1763302586521,0.4668,3159.2,3159.1,1.70796652]
[1763302586760,4.08605831,3159.2,3159.1,1.70796652]
[1763302587850,4.85248149,3159.2,3159.0,1.70796652]
[1763302588042,0.4668,3159.1,3159.0,1.70796652]
[1763302588353,0.9207,3159.1,3158.9,1.70896652]
[1763302588558,0.4539,3159.0,3158.9,1.70896652]
[1763302588756,0.9207,3159.0,3158.9,1.70896652]
[1763302589414,0.9207,3159.0,3158.9,0.001]
[1763302589921,4.08625872,3159.0,3158.9,0.001]
[1763302590255,4.81142833,3159.0,3158.9,0.001]
[1763302590755,1.64586961,3159.0,3158.9,0.001]
[1763302590911,0.9207,3159.0,3158.9,0.001]
[1763302592841,0.9207,3159.0,3158.9,0.5]
[1763302594196,0.002,3159.3,3158.9,0.406504]
[1763302594353,0.002,3159.3,3159.2,0.499]
[1763302594757,0.4659,3159.3,3159.2,0.499]
[1763302594972,0.9212,3159.3,3159.2,0.499]
[1763302595342,0.9212,3159.3,3159.2,3.66435831]
[1763302595676,0.9212,3159.3,3159.2,0.499]
[1763302597043,0.9212,3159.3,3159.0,5.37046259]
[1763302597239,0.002,3159.3,3159.2,0.499]
[1763302597474,0.002,3159.3,3159.2,0.53065358]
[1763302597683,0.002,3159.3,3159.2,0.904504]
[1763302598546,0.4659,3159.3,3159.2,0.904504]
[1763302598861,0.9212,3159.3,3159.2,0.904504]
[1763302599187,0.9212,3159.3,3159.2,6.35359578]
[1763302602686,0.9212,3159.3,3159.2,5.94809178]
[1763302605474,0.002,3159.3,3159.2,6.35359578]
[1763302605874,0.002,3159.3,3159.2,8.63034786]
[1763302606751,0.9212,3159.3,3159.2,3.92574475]
[1763302606986,0.9212,3159.3,3159.2,3.66435831]
[1763302607290,0.4659,3159.3,3159.2,3.66435831]
[1763302607790,0.4659,3159.3,3159.2,0.499]
[1763302607980,0.4659,3159.3,3159.2,2.2050308]
[1763302608176,0.4659,3159.3,3159.2,5.37038911]
[1763302609275,0.4659,3159.3,3159.2,3.66435831]
[1763302610558,0.4659,3159.3,3159.2,0.499]
[1763302611595,0.4659,3159.3,3159.2,3.66435831]
[1763302611894,0.4659,3159.3,3159.2,0.499]
[1763302612259,0.4659,3159.3,3159.2,3.66435831]
[1763302613897,0.002,3159.3,3159.2,3.66435831]
[1763302614656,0.002,3159.3,3159.2,0.499]
[1763302614657,0.4659,3159.3,3159.2,0.499]
[1763302614899,0.9212,3159.3,3159.2,0.499]
[1763302615393,0.4659,3159.3,3159.2,3.66435831]
[1763302615591,0.002,3159.3,3159.2,4.34744872]
[1763302617211,0.9212,3159.3,3159.2,1.18209041]
[1763302617420,0.9212,3159.3,3159.2,3.66435831]
[1763302620223,0.9212,3159.3,3159.2,0.499]
[1763302621194,4.08645812,3159.3,3159.2,1.70786715]
[1763302621718,7.25171624,3159.3,3159.0,0.001]
[1763302621923,7.25171624,3159.3,3158.5,0.001]
[1763302621924,0.6627,3158.9,3158.5,0.001]
[1763302622130,3.61905937,3158.7,3158.5,0.001]
[1763302622614,4.07435937,3158.7,3158.5,0.001]
[1763302625706,0.9085,3158.7,3158.5,0.001]
[1763302626008,4.07435937,3158.7,3158.5,0.001]
[1763302626223,4.81825459,3158.7,3158.5,0.001]
[1763302626650,1.65239522,3158.7,3158.5,0.001]
[1763302626933,4.07435937,3158.7,3158.5,0.001]
[1763302629934,0.9085,3158.7,3158.5,0.001]
[1763302631150,4.07435937,3158.7,3158.5,0.001]
[1763302632254,0.9085,3158.7,3158.5,0.001]
[1763302634328,0.1988,3158.9,3158.6,0.5]
[1763302634528,0.4805,3159.2,3158.9,0.499]
[1763302634974,0.4673,3159.0,3158.6,0.001]
[1763302635171,0.4351,3158.7,3158.6,0.001]
[1763302635468,0.1977,3158.9,3158.8,0.499]
[1763302635975,1.147,3158.9,3158.8,0.499]
[1763302636334,3.1654959,3159.1,3158.8,0.499]
[1763302636534,0.6952,3158.9,3158.8,0.499]
[1763302636753,0.6952,3158.9,3158.7,0.499]
[1763302636957,0.4518,3158.8,3158.7,0.499]
[1763302637266,0.4518,3158.8,3158.6,0.5]
[1763302637267,0.9493,3158.8,3158.6,0.5]
[1763302637561,0.4199,3158.7,3158.6,0.5]
[1763302637777,0.8717,3158.7,3158.6,0.001]
[1763302637980,1.92836838,3158.7,3158.6,0.001]
[1763302639574,6.22796855,3158.7,3158.6,0.001]
[1763302641954,6.52227384,3158.7,3158.6,0.001]
[1763302643178,0.4967,3158.5,3158.2,0.001]
[1763302643485,0.4207,3158.3,3158.2,0.001]
[1763302643693,3.58696032,3158.3,3158.2,0.001]
[1763302643987,4.71407175,3158.3,3158.2,0.001]
[1763302644285,5.84781255,3158.3,3158.2,0.001]
[1763302644594,6.14197271,3158.3,3157.2,0.001]
[1763302644774,0.4214,3158.1,3157.2,0.001]
[1763302644966,1.64645346,3158.1,3157.2,0.001]
[1763302645161,2.09825346,3158.1,3157.2,0.001]
[1763302645387,2.22513265,3158.1,3157.2,0.001]
[1763302645757,5.39159349,3158.1,3157.2,0.001]
[1763302646088,6.52533429,3158.1,3157.2,0.001]
[1763302658705,6.23117413,3158.1,3157.2,0.001]
[1763302659776,6.52519412,3158.1,3157.2,0.001]
[1763302660179,6.93069812,3158.1,3157.2,0.001]
[1763302663623,13.23069811,3158.1,3157.2,0.001]
[1763302663822,13.23269811,3158.1,3157.2,0.001]
[1763302663999,13.23269811,3158.1,3157.6,0.001]
[1763302670460,13.91213319,3158.1,3157.6,0.001]
[1763302677246,0.900704,3157.7,3157.6,1e-08]
[1763302677578,12.64506593,3157.7,3157.6,1e-08]
[1763302677725,16.27406181,3157.7,3157.6,1e-08]
[1763302678377,17.40616756,3157.7,3157.6,1e-08]
[1763302678872,17.56217962,3157.7,3157.6,1e-08]
[1763302679033,20.12212616,3157.7,3157.6,1e-08]
[1763302679675,1.9520448,3157.6,3157.5,1e-08]
[1763302679875,13.02479986,3157.6,3157.5,1e-08]
[1763302680481,14.15690561,3157.6,3157.5,1e-08]
[1763302681776,17.32386785,3157.6,3157.5,1e-08]
[1763302682077,19.69422053,3157.6,3157.5,1e-08]
[1763302682279,18.56211478,3157.6,3157.5,1e-08]
[1763302682646,19.40948675,3157.6,3157.5,1e-08]
[1763302682882,13.68486998,3157.6,3157.5,1e-08]
[1763302683181,10.17378222,3157.6,3157.5,1e-08]
[1763302683382,3.87378223,3157.6,3157.5,1e-08]
[1763302683548,3.46098223,3157.6,3157.5,0.40090001]
[1763302683748,4.59472303,3157.6,3157.5,0.40090001]
[1763302684049,3.46098223,3157.6,3157.5,0.40090001]
[1763302684253,4.59472303,3157.6,3157.5,1e-08]
[1763302685078,4.59472303,3157.6,3157.5,0.40090001]
[1763302685392,5.06892303,3157.6,3157.5,1e-08]
[1763302686094,5.89250153,3157.6,3157.5,1e-08]
[1763302686598,6.36070153,3157.6,3157.5,1e-08]
[1763302686802,5.41830153,3157.6,3157.5,1e-08]
[1763302686965,5.41830153,3157.6,3157.5,0.40090001]
[1763302687159,5.89250153,3157.6,3157.5,1e-08]
[1763302689218,6.36070153,3157.6,3157.5,1e-08]
[1763302690613,5.89250153,3157.6,3157.5,1e-08]
[1763302691011,4.59472303,3157.6,3157.5,0.40090001]
[1763302691197,3.46098223,3157.6,3157.5,0.80180001]
[1763302694558,0.002,3158.1,3157.5,0.80180001]
[1763302694753,6.62776068,3158.0,3157.6,0.4009]
[1763302695045,0.29463846,3157.9,3157.6,0.4009]
[1763302695408,0.29463846,3157.9,3157.8,0.4009]
[1763302695713,0.29460117,3157.9,3157.8,0.4009]
[1763302695915,0.29460117,3157.9,3157.8,0.8018]
[1763302696711,3.46126255,3157.9,3157.8,0.4009]
[1763302697119,3.46126255,3157.9,3157.8,0.8018]
[1763302697323,0.29460117,3157.9,3157.8,0.8018]
[1763302697661,0.002,3158.1,3157.8,0.8018]
[1763302697662,3.16847014,3158.1,3157.8,0.8018]
[1763302697848,3.16847014,3158.1,3158.0,0.4009]
[1763302698034,0.002,3158.1,3158.0,0.4009]
[1763302698236,3.16846084,3158.1,3158.0,0.8018]
[1763302698628,0.002,3158.1,3158.0,0.8018]
[1763302701577,0.002,3158.1,3158.0,0.4009]
[1763302702038,0.002,3158.1,3158.0,0.8018]
[1763302703250,0.002,3158.1,3158.0,1.6976501]
[1763302703651,0.002,3158.1,3158.0,0.8018]
[1763302704160,0.002,3158.1,3158.0,1.3008]
[1763302705578,0.002,3158.1,3158.0,4.46736111]
[1763302705780,0.002,3158.1,3158.0,1.3008]
[1763302707510,0.002,3158.1,3158.0,4.46736111]
[1763302707720,0.002,3158.1,3158.0,2.06421181]
[1763302708288,0.002,3158.1,3158.0,0.8018]
[1763302709316,0.002,3158.1,3158.0,1.3008]
[1763302710203,0.002,3158.1,3158.0,0.4009]
[1763302710405,0.002,3158.1,3157.5,0.40090001]
[1763302710607,0.002,3158.1,3158.0,0.4009]
[1763302712281,0.9701,3158.1,3157.5,1e-08]
[1763302712482,0.4064,3157.9,3157.5,1e-08]
[1763302712737,0.8876,3157.9,3157.5,1e-08]
[1763302713219,0.4064,3157.9,3157.5,1e-08]
[1763302713607,0.8876,3157.9,3157.5,1e-08]
[1763302714029,6.33352332,3157.8,3157.5,1e-08]
[1763302714344,0.67399233,3157.7,3157.5,1e-08]
[1763302714738,0.67399233,3157.7,3157.6,0.4009]
[1763302715208,0.67399233,3157.7,3157.5,1e-08]
[1763302715609,0.67399233,3157.7,3157.6,0.4009]
[1763302716023,3.84085428,3157.7,3157.6,0.3953]
[1763302717450,3.84085428,3157.7,3157.5,1e-08]
[1763302718828,1.18686159,3157.6,3157.5,1e-08]
[1763302719346,1.64206159,3157.6,3157.5,1e-08]
[1763302720255,4.80902383,3157.6,3157.5,1e-08]
[1763302723460,4.35382383,3157.6,3157.5,1e-08]
[1763302723869,3.16696224,3157.6,3157.5,0.39530001]
[1763302724443,3.16676166,3157.8,3157.5,0.79060001]
[1763302724778,0.002,3158.1,3157.7,0.8943]
[1763302724991,0.002,3158.1,3157.5,1e-08]
[1763302725480,0.002,3158.1,3157.5,0.39530001]
[1763302727243,0.002,3158.1,3157.5,0.7516518]
[1763302727445,0.002,3158.1,3158.0,0.3953]
[1763302729389,0.9433,3158.1,3157.5,1e-08]
[1763302729589,0.002,3158.1,3158.0,0.3953]
[1763302729789,1.64591225,3158.1,3157.5,0.39530001]
[1763302731499,6.33312222,3158.0,3157.5,0.39530001]
[1763302733894,3.16656111,3158.0,3157.9,0.3953]
[1763302735872,0.002,3158.1,3157.9,0.3953]
[1763302736077,3.16846084,3158.1,3158.0,0.3953]
[1763302736306,3.16846084,3158.1,3158.0,0.7906]
[1763302737326,0.002,3158.1,3158.0,0.7906]
[1763302739819,0.002,3158.1,3158.0,0.3953]
[1763302740026,0.002,3158.1,3158.0,0.7906]
[1763302740586,0.002,3158.1,3158.0,4.45616111]
[1763302740789,0.002,3158.1,3158.0,5.2184458]
[1763302741590,0.002,3158.1,3158.0,2.05188469]
[1763302742922,0.002,3158.1,3158.0,5.2184458]
[1763302743421,0.002,3158.1,3158.0,2.05188469]
[1763302743787,0.002,3158.1,3158.0,5.2184458]
[1763302744022,0.002,3158.1,3158.0,2.05188469]
[1763302744591,0.002,3158.1,3158.0,0.3953]
[1763302744791,0.002,3158.1,3157.6,0.8943]
[1763302745205,0.002,3158.1,3157.6,0.499]
[1763302745629,0.002,3158.1,3158.0,0.3953]
[1763302745830,0.002,3158.1,3157.6,0.499]
[1763302746039,0.002,3158.1,3157.7,0.16327408]
[1763302746723,0.002,3158.1,3158.0,0.3953]
[1763302746920,0.002,3158.1,3157.5,1e-08]
[1763302747122,0.002,3158.1,3157.6,0.499]
[1763302747607,0.002,3158.1,3158.0,0.3953]
[1763302749994,0.002,3158.1,3158.0,3.95716111]
[1763302750199,0.002,3158.1,3158.0,2.05505557]
[1763302750938,0.002,3158.1,3158.0,5.25328229]
[1763302751536,0.002,3158.1,3158.0,6.79252709]
[1763302751760,0.002,3158.1,3158.0,6.76086148]
[1763302762258,0.002,3158.1,3158.0,5.62712068]
[1763302763179,0.002,3158.1,3158.0,6.76086148]
[1763302764257,0.002,3158.1,3158.0,9.03761356]
[1763302767400,0.002,3158.1,3158.0,6.76086148]
[1763302776133,0.002,3158.1,3158.0,6.36556148]
[1763302776508,0.002,3158.1,3158.0,7.50629778]
[1763302776703,0.002,3158.1,3158.0,5.23182068]
[1763302776907,0.002,3158.1,3158.0,6.36556148]
[1763302778925,0.4594,3158.1,3158.0,8.24632493]
[1763302779329,0.002,3158.1,3158.0,8.24632493]
[1763302779530,0.002,3158.1,3158.0,6.36556148]
[1763302785045,0.002,3158.1,3158.0,6.76086148]
[1763302785576,0.00014091,3158.1,3158.0,9.60923578]
[1763302787906,0.00014091,3158.1,3158.0,9.21393578]
[1763302789921,0.00014091,3158.1,3158.0,9.60923578]
[1763302791819,0.00014091,3158.1,3158.0,6.76086148]
[1763302795343,0.002,3158.3,3158.1,1.5392448]
[1763302795538,0.002,3158.3,3158.2,6.88017212]
[1763302795766,0.002,3158.3,3158.2,7.27547212]
[1763302798334,0.002,3158.3,3158.2,6.88017212]
[1763302798549,0.002,3158.3,3158.2,7.27547212]
[1763302799365,0.002,3158.3,3158.2,6.88017212]
[1763302801803,0.002,3158.3,3158.2,6.74657212]
[1763302803675,0.002,3158.3,3158.2,6.35127212]
[1763302803676,0.4594,3158.3,3158.2,6.35127212]
[1763302803867,0.9474,3158.3,3158.2,4.79910138]
[1763302804507,0.4594,3158.3,3158.2,7.07874329]
[1763302804663,0.4594,3158.3,3158.2,7.48424729]
[1763302805107,0.9433,3158.3,3158.2,5.20460538]
[1763302805478,0.9433,3158.3,3158.2,7.48428502]
[1763302808980,0.9433,3158.3,3158.2,5.20460538]
[1763302809300,0.9433,3158.3,3158.2,7.48428502]
[1763302809464,0.9433,3158.3,3158.2,5.20460538]
[1763302810568,0.9433,3158.3,3158.2,1.6327408]
[1763302810906,0.9433,3158.3,3158.2,1.1337408]
[1763302812879,0.002,3158.3,3158.2,5.20460538]
[1763302813081,0.002,3158.3,3158.2,9.29296981]
[1763302813398,0.002,3158.3,3158.2,7.37692657]
[1763302813604,0.002,3158.3,3158.2,6.98162657]
[1763302814207,0.002,3158.3,3158.2,7.37692657]
[1763302814705,0.002,3158.3,3158.2,6.98162657]
[1763302815588,0.002,3158.3,3158.2,6.58632657]
[1763302815778,0.002,3158.3,3158.2,6.98162657]
[1763302815978,0.002,3158.3,3158.2,7.37692657]
[1763302820485,0.002,3158.3,3158.2,10.22618008]
[1763302822878,0.00014767,3158.3,3158.2,10.22618008]
[1763302824218,0.00014767,3158.3,3158.2,7.37692657]
[1763302825590,0.00014767,3158.3,3158.2,6.98162657]
[1763302827815,0.48384767,3158.3,3158.2,6.58632657]
[1763302828319,0.00014767,3158.3,3158.2,9.43238755]
[1763302828513,0.48384767,3158.3,3158.2,9.02688355]
[1763302828716,0.96744767,3158.3,3158.2,9.02688355]
[1763302828899,0.96744767,3158.3,3158.2,6.18082257]
[1763302829101,0.96744767,3158.3,3158.2,6.58632657]
[1763302831219,0.96744767,3158.3,3158.2,5.20460538]
[1763302833006,0.00014767,3158.3,3158.2,5.20460538]
[1763302833212,0.48384767,3158.3,3158.2,5.23626898]
[1763302833422,0.00014767,3158.3,3158.2,5.20460538]
[1763302833622,0.00014767,3158.3,3158.2,5.59990538]
[1763302834121,0.00014767,3158.3,3158.2,6.79338872]
[1763302834735,0.45164767,3158.3,3158.2,6.39808872]
[1763302835034,0.90524767,3158.3,3158.2,5.20460538]
[1763302835506,0.45164767,3158.3,3158.2,5.20460538]
[1763302835907,0.00014767,3158.3,3158.2,5.20460538]
[1763302836418,0.45164767,3158.3,3158.2,5.20460538]
[1763302836590,0.90524767,3158.3,3158.2,5.20460538]